bitfinex-derivatives/quotes_BTCF0:USTF0_20250803
["timestamp","ask_amount","ask_price","bid_price","bid_amount"]
[1754248635082,1.23268941,114500.0,114490.0,0.36244]
[1754248635488,1.23268941,114500.0,114490.0,0.5371278]
[1754248636091,0.6259532,114500.0,114490.0,0.5592878]
[1754248636294,1.23268941,114500.0,114490.0,0.5592878]
[1754248636886,0.6259532,114500.0,114490.0,0.5592878]
[1754248637086,1.23268941,114500.0,114490.0,0.5592878]
[1754248640392,1.23268941,114500.0,114490.0,0.2952078]
[1754248640591,1.23268941,114500.0,114490.0,0.5596878]
[1754248641593,1.23268941,114500.0,114490.0,0.5596478]
[1754248642782,1.23468941,114500.0,114490.0,0.5596478]
[1754248642984,1.23468941,114500.0,114490.0,0.2952078]
[1754248648102,1.25521028,114500.0,114490.0,0.12052]
[1754248648301,1.25521028,114500.0,114490.0,0.2952076]
[1754248648895,1.25521028,114500.0,114490.0,0.12052]
[1754248651102,1.25521028,114500.0,114490.0,0.2952077]
[1754248652507,1.25521028,114500.0,114490.0,0.12052]
[1754248653000,1.25521028,114500.0,114490.0,0.2952076]
[1754248656804,1.25521028,114500.0,114490.0,0.12052]
[1754248657004,1.25521028,114500.0,114490.0,0.2952071]
[1754248658012,1.23468941,114500.0,114490.0,0.2952071]
[1754248659213,0.6279532,114500.0,114490.0,0.2952071]
[1754248659406,0.82708941,114500.0,114490.0,0.90194331]
[1754248659711,0.2313532,114500.0,114490.0,0.90194331]
[1754248659913,0.83808941,114500.0,114490.0,0.90194331]
[1754248660104,0.84928941,114500.0,114490.0,0.90194331]
[1754248660304,0.86688941,114500.0,114490.0,0.2952071]
[1754248660507,0.86688941,114500.0,114490.0,0.90194331]
[1754248661416,0.83808941,114500.0,114490.0,0.90194331]
[1754248662416,0.83608941,114500.0,114490.0,0.90194331]
[1754248662616,0.83808941,114500.0,114490.0,0.90194331]
[1754248663121,0.83608941,114500.0,114490.0,0.90194331]
[1754248663318,0.83808941,114500.0,114490.0,0.90194331]
[1754248663918,0.83908941,114500.0,114490.0,0.90194331]
[1754248664517,0.85028941,114500.0,114490.0,0.90194331]
[1754248664719,0.2213532,114500.0,114490.0,1.26274331]
[1754248664918,0.2213532,114500.0,114490.0,0.6560071]
[1754248665218,0.2213532,114500.0,114490.0,1.26274331]
[1754248665418,0.82808941,114500.0,114490.0,1.26274331]
[1754248666007,0.82708941,114500.0,114490.0,1.26274331]
[1754248666516,0.82608941,114500.0,114490.0,1.26274331]
[1754248666718,0.82508941,114500.0,114490.0,1.26274331]
[1754248666917,0.83708941,114500.0,114490.0,0.6560071]
[1754248667119,0.83708941,114500.0,114490.0,0.2952071]
[1754248667319,0.83531701,114500.0,114490.0,0.2952071]
[1754248669121,0.84651701,114500.0,114490.0,0.2952071]
[1754248669322,0.86411701,114500.0,114490.0,0.2952071]
[1754248674130,0.86411701,114500.0,114490.0,0.90194331]
[1754248678236,0.86411701,114500.0,114490.0,1.26274331]
[1754248679737,0.2573808,114500.0,114490.0,1.26274331]
[1754248680238,0.86411701,114500.0,114490.0,1.26274331]
[1754248680743,0.86411701,114500.0,114490.0,0.6560071]
[1754248681043,0.86411701,114500.0,114490.0,1.26274331]
[1754248681341,0.86411701,114500.0,114490.0,0.6560071]
[1754248686350,0.2573808,114500.0,114490.0,0.6560071]
[1754248686544,0.86411701,114500.0,114490.0,0.6560071]
[1754248686849,0.86411701,114500.0,114490.0,1.26274331]
[1754248687250,0.86411701,114500.0,114490.0,0.6560071]
[1754248687446,0.86411701,114500.0,114490.0,1.26274331]
[1754248690355,0.86411701,114500.0,114490.0,0.6560071]
[1754248690654,0.86411701,114500.0,114490.0,1.26274331]
[1754248691860,0.2573808,114500.0,114490.0,1.26274331]
[1754248692047,0.85778851,114500.0,114490.0,1.26274331]
[1754248692250,0.85778851,114500.0,114490.0,0.6560071]
[1754248692541,0.85778851,114500.0,114490.0,1.26274331]
[1754248696950,0.85778851,114500.0,114490.0,0.90194331]
[1754248698759,0.85778851,114500.0,114490.0,0.2952071]
[1754248698959,0.85778851,114500.0,114490.0,0.90194331]
[1754248699863,0.85778851,114500.0,114490.0,0.2952071]
[1754248700160,0.85778851,114500.0,114490.0,0.90194331]
[1754248700962,0.85778851,114500.0,114490.0,0.2952071]
[1754248701165,0.85778851,114500.0,114490.0,0.90194331]
[1754248701356,0.85778851,114500.0,114490.0,1.26274331]
[1754248706855,0.2510523,114500.0,114490.0,1.26274331]
[1754248707056,0.85778851,114500.0,114490.0,1.26274331]
[1754248709352,0.85778851,114500.0,114490.0,0.90194331]
[1754248709559,0.85778851,114500.0,114490.0,1.26274331]
[1754248710961,0.85778851,114500.0,114490.0,0.90194331]
[1754248711264,0.85778851,114500.0,114490.0,1.26274331]
[1754248715666,0.85778851,114500.0,114490.0,0.90194331]
[1754248715866,0.85778851,114500.0,114490.0,1.26274331]
[1754248716966,0.85778851,114500.0,114490.0,0.6560071]
[1754248717169,0.85778851,114500.0,114490.0,1.26274331]
[1754248718667,0.85778851,114500.0,114490.0,0.90194331]
[1754248718966,0.85778851,114500.0,114490.0,1.26274331]
[1754248721670,0.2510523,114500.0,114490.0,1.26274331]
[1754248722170,0.85778851,114500.0,114490.0,1.26274331]
[1754248728274,0.85778851,114500.0,114490.0,1.28039148]
[1754248737481,0.2510523,114500.0,114490.0,1.28039148]
[1754248737675,0.85778851,114500.0,114490.0,1.28039148]
[1754248741280,0.2510523,114500.0,114490.0,1.28039148]
[1754248741485,0.85778851,114500.0,114490.0,1.28039148]
[1754248743190,0.2510523,114500.0,114490.0,1.28039148]
[1754248743483,0.85778851,114500.0,114490.0,0.67365527]
[1754248743782,0.85778851,114500.0,114490.0,1.28039148]
[1754248744184,0.85778851,114500.0,114490.0,0.67365527]
[1754248747586,0.85778851,114500.0,114490.0,1.28039148]
[1754248748585,0.2510523,114500.0,114490.0,1.28039148]
[1754248748787,0.85778851,114500.0,114490.0,1.28039148]
[1754248749786,0.85778851,114500.0,114490.0,0.67365527]
[1754248749986,0.85778851,114500.0,114490.0,1.28039148]
[1754248750584,0.85778851,114500.0,114490.0,0.57698517]
[1754248750789,0.86478851,114500.0,114490.0,0.823737]
[1754248750988,0.86478851,114500.0,114490.0,0.559337]
[1754248751176,0.86478851,114500.0,114490.0,0.31224]
[1754248751382,0.86478851,114500.0,114490.0,0.4869269]
[1754248751683,0.86478851,114500.0,114490.0,0.5371569]
[1754248751890,0.86478851,114500.0,114490.0,0.5590069]
[1754248752081,0.86378851,114500.0,114490.0,0.0707]
[1754248752277,0.2214869,114490.0,114480.0,0.97602047]
[1754248752589,0.82822311,114490.0,114480.0,1.31890733]
[1754248752889,0.82822311,114490.0,114480.0,1.24046047]
[1754248753877,0.82922311,114490.0,114480.0,1.24046047]
[1754248754689,0.82922311,114490.0,114480.0,0.87966047]
[1754248754889,0.83022311,114490.0,114480.0,0.87966047]
[1754248755987,0.83022311,114490.0,114480.0,0.61246047]
[1754248756683,0.82322311,114490.0,114480.0,0.61246047]
[1754248763994,0.82322311,114490.0,114480.0,0.97326047]
[1754248768798,0.64853621,114490.0,114480.0,1.57999668]
[1754248769400,0.0418,114490.0,114480.0,1.57999668]
[1754248769606,0.64853621,114490.0,114480.0,1.57999668]
[1754248770097,0.82322301,114490.0,114480.0,1.57999668]
[1754248770694,0.64853621,114490.0,114480.0,1.57999668]
[1754248771095,0.82322301,114490.0,114480.0,1.57999668]
[1754248773106,0.82322301,114490.0,114480.0,1.65844354]
[1754248775605,0.82322301,114490.0,114480.0,1.57999668]
[1754248775806,0.82322301,114490.0,114480.0,0.97326047]
[1754248776003,0.82322301,114490.0,114480.0,1.57999668]
[1754248776501,0.82322301,114490.0,114480.0,1.65844354]
[1754248777510,0.2164868,114490.0,114480.0,1.65844354]
[1754248777806,0.82322301,114490.0,114480.0,1.65844354]
[1754248778709,0.2164868,114490.0,114480.0,1.65844354]
[1754248778910,0.82322301,114490.0,114480.0,1.65844354]
[1754248787413,0.2164868,114490.0,114480.0,1.65844354]
[1754248787615,0.82322301,114490.0,114480.0,1.65844354]
[1754248788015,0.82322301,114490.0,114480.0,1.57999668]
[1754248788203,0.2164868,114490.0,114480.0,1.57999668]
[1754248788406,0.82322301,114490.0,114480.0,1.57999668]
[1754248789517,0.2164868,114490.0,114480.0,1.57999668]
[1754248789912,0.82322301,114490.0,114480.0,1.57999668]
[1754248790119,0.82322301,114490.0,114480.0,1.5814143]
[1754248791217,0.82322301,114490.0,114480.0,1.58160903]
[1754248799123,0.82322301,114490.0,114480.0,0.97487282]
[1754248799317,0.82322301,114490.0,114480.0,1.58160903]
[1754248802119,0.82322301,114490.0,114480.0,1.57999668]
[1754248802321,0.82322301,114490.0,114480.0,1.58167033]
[1754248803425,0.2164868,114490.0,114480.0,1.58167033]
[1754248803623,0.64853621,114490.0,114480.0,1.58167033]
[1754248804127,0.002,114490.0,114480.0,2.18840654]
[1754248804520,1.15318791,114520.0,114510.0,0.2944164]
[1754248804721,1.17346214,114520.0,114510.0,0.5587364]
[1754248805027,0.84146214,114520.0,114510.0,0.5587364]
[1754248805221,0.82118791,114520.0,114510.0,0.92121005]
[1754248805627,0.82118791,114520.0,114510.0,0.56041005]
[1754248806326,0.82118791,114520.0,114510.0,0.92121005]
[1754248806528,0.82318791,114520.0,114510.0,0.92121005]
[1754248806828,0.82418791,114520.0,114510.0,0.92121005]
[1754248807821,0.82417741,114520.0,114510.0,1.52794626]
[1754248808022,0.60973621,114520.0,114510.0,1.52794626]
[1754248808329,0.003,114520.0,114510.0,1.59912502]
[1754248809331,0.001,114520.0,114510.0,1.59912502]
[1754248809539,0.002,114520.0,114510.0,1.59912502]
[1754248810134,0.001,114520.0,114510.0,1.59912502]
[1754248810332,0.002,114520.0,114510.0,1.48366472]
[1754248810539,0.002,114520.0,114510.0,1.65832112]
[1754248811030,0.002,114520.0,114510.0,1.72903112]
[1754248812138,0.001,114520.0,114510.0,1.12229491]
[1754248812439,0.001,114520.0,114510.0,1.72903112]
[1754248813030,0.90847841,114530.0,114520.0,0.2924712]
[1754248813239,0.90847841,114530.0,114520.0,0.65494485]
[1754248813832,0.90847841,114530.0,114520.0,1.26168106]
[1754248815140,0.90947841,114530.0,114520.0,1.26168106]
[1754248815439,0.91047841,114530.0,114520.0,1.26168106]
[1754248816631,0.91047841,114530.0,114520.0,0.65494485]
[1754248823243,0.3037422,114530.0,114520.0,1.26168106]
[1754248823445,0.91047841,114530.0,114520.0,1.26168106]
[1754248829147,0.91047841,114530.0,114520.0,0.65494485]
[1754248829148,0.002,114530.0,114520.0,0.65494485]
[1754248829349,0.002,114530.0,114520.0,1.26168106]
[1754248831448,0.86478771,114550.0,114540.0,0.4233766]
[1754248831649,0.88499316,114550.0,114540.0,0.6878566]
[1754248832250,0.88499316,114550.0,114540.0,0.68953025]
[1754248832451,0.86478771,114550.0,114540.0,0.68953025]
[1754248832753,0.86578771,114550.0,114540.0,0.68953025]
[1754248832953,0.86578771,114550.0,114540.0,0.69830135]
[1754248834151,0.86678771,114550.0,114540.0,0.69830135]
[1754248835152,0.88700377,114550.0,114540.0,0.69830135]
[1754248835956,0.86678771,114550.0,114540.0,0.69830135]
[1754248836254,0.83798771,114550.0,114540.0,0.69830135]
[1754248836448,0.86678771,114550.0,114540.0,0.69830135]
[1754248839753,0.86578771,114550.0,114540.0,0.69830135]
[1754248840748,0.86578771,114550.0,114540.0,0.65465035]
[1754248840950,0.86578771,114550.0,114540.0,0.06029475]
[1754248841146,1.84032392,114550.0,114540.0,0.00167365]
[1754248841349,1.84032392,114550.0,114540.0,0.02592365]
[1754248841543,1.23358771,114550.0,114540.0,0.20053425]
[1754248841743,1.23358771,114550.0,114540.0,0.02592365]
[1754248843448,1.25376978,114550.0,114540.0,0.02592365]
[1754248843951,1.23358771,114550.0,114540.0,0.02592365]
[1754248844554,1.84032392,114550.0,114540.0,0.00167365]
[1754248844954,1.84032392,114550.0,114540.0,0.02592365]
[1754248845450,1.23358771,114550.0,114540.0,0.20053435]
[1754248845654,1.23258771,114550.0,114540.0,0.20053435]
[1754248845846,1.23458771,114550.0,114540.0,0.20053435]
[1754248846042,1.84132392,114550.0,114540.0,0.20053435]
[1754248846247,1.84332392,114550.0,114540.0,0.20053435]
[1754248846453,1.84332392,114550.0,114540.0,0.02592365]
[1754248846643,1.23658771,114550.0,114540.0,0.02592365]
[1754248847953,1.23658771,114550.0,114540.0,0.20053435]
[1754248848557,1.84332392,114550.0,114540.0,0.20053435]
[1754248849059,1.23658771,114550.0,114540.0,0.20053435]
[1754248849848,1.23658771,114550.0,114540.0,0.02592365]
[1754248850658,1.23658771,114550.0,114540.0,0.20053435]
[1754248854767,0.6298515,114550.0,114540.0,0.20053435]
[1754248855059,1.23658771,114550.0,114540.0,0.22315435]
[1754248855361,1.23658771,114550.0,114540.0,0.27136435]
[1754248857963,0.004,114550.0,114540.0,1.86718677]
[1754248858171,0.004,114550.0,114540.0,2.04178677]
[1754248858463,1.30255121,114570.0,114560.0,0.2749909]
[1754248858662,1.27910199,114570.0,114560.0,0.2749909]
[1754248858866,1.25890631,114570.0,114560.0,0.2749909]
[1754248859367,0.90319221,114570.0,114560.0,0.88340076]
[1754248859569,0.90319221,114570.0,114560.0,0.27666455]
[1754248859970,0.90519221,114570.0,114560.0,0.27666455]
[1754248860461,0.90519221,114570.0,114560.0,0.88340076]
[1754248860666,0.90519221,114570.0,114560.0,0.27666455]
[1754248860667,0.298456,114570.0,114560.0,0.27666455]
[1754248875379,0.176576,114570.0,114560.0,1.17540935]
[1754248875573,0.210446,114570.0,114560.0,0.63746455]
[1754248875774,0.274586,114570.0,114560.0,0.63746455]
[1754248876073,0.296996,114570.0,114560.0,0.63746455]
[1754248876279,0.296996,114570.0,114560.0,1.17540935]
[1754248877279,0.296996,114570.0,114560.0,0.63746455]
[1754248878472,0.296996,114570.0,114560.0,1.17540935]
[1754248879677,0.296996,114570.0,114560.0,0.63746455]
[1754248880178,0.248886,114570.0,114560.0,0.63746455]
[1754248880481,0.296996,114570.0,114560.0,0.63746455]
[1754248880686,0.296996,114570.0,114560.0,1.17540935]
[1754248881081,0.296996,114570.0,114560.0,0.63746455]
[1754248881483,0.296996,114570.0,114560.0,1.17540935]
[1754248881782,0.296996,114570.0,114560.0,0.63746455]
[1754248882679,0.296996,114570.0,114560.0,1.24257653]
[1754248882878,0.296996,114570.0,114560.0,0.63746455]
[1754248882879,0.90210798,114570.0,114560.0,0.63746455]
[1754248883080,0.90210798,114570.0,114560.0,1.24257653]
[1754248883579,0.296996,114570.0,114560.0,1.24257653]
[1754248883780,0.90210798,114570.0,114560.0,1.24257653]
[1754248884682,0.296996,114570.0,114560.0,1.24257653]
[1754248884877,0.296996,114570.0,114560.0,0.63746455]
[1754248885078,0.296996,114570.0,114560.0,1.24257653]
[1754248885579,0.90210798,114570.0,114560.0,1.24257653]
[1754248886179,0.296996,114570.0,114560.0,0.63746455]
[1754248886379,0.296996,114570.0,114560.0,1.24257653]
[1754248886577,0.90210798,114570.0,114560.0,1.24257653]
[1754248887178,0.296996,114570.0,114560.0,1.24257653]
[1754248887581,0.90210798,114570.0,114560.0,0.63737455]
[1754248887782,0.90210798,114570.0,114560.0,1.24248653]
[1754248889583,0.295996,114570.0,114560.0,1.24248653]
[1754248890189,0.07331,114570.0,114560.0,1.50860653]
[1754248890386,0.001,114570.0,114560.0,1.68322253]
[1754248891585,0.001,114570.0,114560.0,1.50864653]
[1754248891979,0.001,114570.0,114560.0,1.17073455]
[1754248892383,0.001,114570.0,114560.0,1.77584653]
[1754248893281,0.001,114570.0,114560.0,1.34531055]
[1754248893485,0.001,114570.0,114560.0,1.95042253]
[1754248893784,0.001,114570.0,114560.0,1.77584653]
[1754248898793,0.001,114570.0,114560.0,2.38095851]
[1754248899186,0.001,114570.0,114560.0,1.77584653]
[1754248899793,0.001,114570.0,114560.0,2.38095851]
[1754248900492,0.001,114570.0,114560.0,1.77584653]
[1754248901495,0.001,114570.0,114560.0,2.38095851]
[1754248903097,0.001,114570.0,114560.0,1.17073455]
[1754248903288,0.001,114570.0,114560.0,1.77584653]
[1754248904494,0.001,114570.0,114560.0,2.45940537]
[1754248904891,0.001,114570.0,114560.0,2.38095851]
[1754248905091,0.001,114570.0,114560.0,1.17073455]
[1754248905293,0.001,114570.0,114560.0,1.42375741]
[1754248905598,0.001,114570.0,114560.0,1.92375741]
[1754248906699,0.001,114570.0,114560.0,1.74918141]
[1754248909089,0.001,114570.0,114560.0,2.28681966]
[1754248909292,0.001,114570.0,114560.0,2.2083728]
[1754248910297,0.001,114570.0,114560.0,1.67073455]
[1754248910490,0.001,114570.0,114560.0,2.2083728]
[1754248912597,0.2441869,114590.0,114570.0,0.1309185]
[1754248912796,0.2910569,114590.0,114580.0,0.8976208]
[1754248913503,0.2910569,114590.0,114580.0,1.4369327]
[1754248913902,0.11652,114590.0,114580.0,1.4369327]
[1754248914600,0.2910552,114590.0,114580.0,1.4369327]
[1754248915208,0.2910552,114590.0,114580.0,0.89929445]
[1754248915503,0.2920552,114590.0,114580.0,1.4369327]
[1754248915702,0.2920552,114590.0,114580.0,1.7041327]
[1754248916102,0.11752,114590.0,114580.0,1.7041327]
[1754248916802,0.11752,114590.0,114580.0,1.16649445]
[1754248917006,0.2920559,114590.0,114580.0,1.77255738]
[1754248917706,0.2920559,114590.0,114580.0,2.13335738]
[1754248919710,0.2920559,114590.0,114580.0,1.59571913]
[1754248920105,0.2920559,114590.0,114580.0,2.13335738]
[1754248920512,0.2920559,114590.0,114580.0,1.59571913]
[1754248920815,0.2920559,114590.0,114580.0,0.84952913]
[1754248920816,0.82969415,114590.0,114580.0,0.84952913]
[1754248921112,0.2920559,114590.0,114580.0,0.84952913]
[1754248921723,0.82969415,114590.0,114580.0,0.07009833]
[1754248921950,1.19049415,114590.0,114580.0,0.34193833]
[1754248922411,0.2920559,114590.0,114580.0,0.51648953]
[1754248922606,0.2234959,114590.0,114580.0,1.50621778]
[1754248922918,0.2920559,114590.0,114580.0,0.96857953]
[1754248924106,0.11752,114590.0,114580.0,0.96857953]
[1754248924306,0.2920559,114590.0,114580.0,0.96857953]
[1754248924506,0.2920559,114590.0,114580.0,1.50621778]
[1754248925915,0.2920559,114590.0,114580.0,0.96857953]
[1754248926112,0.2920559,114590.0,114580.0,1.50621778]
[1754248927122,0.11752,114590.0,114580.0,1.50621778]
[1754248927523,0.11752,114590.0,114580.0,1.77341778]
[1754248928222,0.08483,114590.0,114580.0,1.77341778]
[1754248928418,0.06304,114590.0,114580.0,1.77341778]
[1754248928613,0.06304,114590.0,114580.0,1.8406091]
[1754248930328,0.09573,114590.0,114580.0,1.8406091]
[1754248930523,0.2702659,114590.0,114580.0,1.8406091]
[1754248931225,0.2915559,114590.0,114580.0,1.8406091]
[1754248931427,0.2905559,114590.0,114580.0,1.8406091]
[1754248931628,0.2905559,114590.0,114580.0,1.8456091]
[1754248932430,0.2905559,114590.0,114580.0,1.8436091]
[1754248932622,0.2915559,114590.0,114580.0,1.8436091]
[1754248933425,0.2915559,114590.0,114580.0,1.8406091]
[1754248933626,0.2925559,114590.0,114580.0,1.8406091]
[1754248933824,0.11802,114590.0,114580.0,1.8406091]
[1754248934025,0.002,114590.0,114580.0,1.8406091]
[1754248934424,0.02529,114590.0,114580.0,1.8406091]
[1754248934825,0.002,114590.0,114580.0,1.8406091]
[1754248935226,0.002,114590.0,114580.0,1.91905596]
[1754248935531,0.001,114590.0,114580.0,1.92005596]
[1754248936024,0.02329,114600.0,114580.0,1.74550476]
[1754248936231,0.2244107,114600.0,114590.0,1.23085547]
[1754248936432,0.03392,114600.0,114590.0,1.23252912]
[1754248937231,0.94478287,114610.0,114600.0,0.2122906]
[1754248937435,0.94478287,114610.0,114600.0,1.14367382]
[1754248937821,0.3399533,114610.0,114600.0,0.53884425]
[1754248938025,0.94478287,114610.0,114600.0,1.14367382]
[1754248938632,0.72763957,114610.0,114600.0,1.50447382]
[1754248938831,0.90214507,114610.0,114600.0,1.50447382]
[1754248939134,0.90314507,114610.0,114600.0,1.50447382]
[1754248940035,0.90314507,114610.0,114600.0,1.51340228]
[1754248944140,0.90314507,114610.0,114600.0,0.90857271]
[1754248944436,0.90314507,114610.0,114600.0,1.51340228]
[1754248945539,0.90314507,114610.0,114600.0,0.90857271]
[1754248945732,0.90314507,114610.0,114600.0,1.51340228]
[1754248946737,0.90214507,114610.0,114600.0,1.51440228]
[1754248946939,0.2973155,114610.0,114600.0,1.51440228]
[1754248947128,0.90114507,114610.0,114600.0,0.90957271]
[1754248947436,0.90114507,114610.0,114600.0,1.51440228]
[1754248947836,0.90114507,114610.0,114600.0,0.90957271]
[1754248948038,0.90214507,114610.0,114600.0,1.51340228]
[1754248948234,0.90314507,114610.0,114600.0,1.51340228]
[1754248949139,0.90214507,114610.0,114600.0,1.51440228]
[1754248950243,0.90114507,114610.0,114600.0,1.51440228]
[1754248950841,0.2963155,114610.0,114600.0,0.90857271]
[1754248951041,0.2963155,114610.0,114600.0,1.51340228]
[1754248951042,0.90214507,114610.0,114600.0,1.51340228]
[1754248951243,0.2973155,114610.0,114600.0,1.51340228]
[1754248951434,0.90214507,114610.0,114600.0,1.51340228]
[1754248951634,0.2983155,114610.0,114600.0,1.51340228]
[1754248951841,0.06789,114610.0,114600.0,1.51340228]
[1754248952043,0.002,114610.0,114600.0,1.51340228]
[1754248952435,0.02429,114610.0,114600.0,1.51340228]
[1754248952637,0.02429,114610.0,114600.0,1.51440228]
[1754248952934,0.1987954,114610.0,114600.0,1.51440228]
[1754248953246,0.59869714,114620.0,114610.0,0.2651954]
[1754248953436,0.78915734,114620.0,114610.0,1.23249862]
[1754248953635,1.39398691,114620.0,114610.0,1.23249862]
[1754248953835,0.78915734,114620.0,114610.0,1.23249862]
[1754248954038,1.39398691,114620.0,114610.0,1.23166824]
[1754248954244,1.39398691,114620.0,114610.0,0.64508867]
[1754248954546,1.39498691,114620.0,114610.0,0.64508867]
[1754248954740,1.39598691,114620.0,114610.0,0.64508867]
[1754248955142,1.39598691,114620.0,114610.0,1.24991824]
[1754248955444,0.79115734,114620.0,114610.0,1.24991824]
[1754248955645,1.39598691,114620.0,114610.0,0.64508867]
[1754248955845,1.39598691,114620.0,114610.0,1.24991824]
[1754248956951,0.79115734,114620.0,114610.0,1.24991824]
[1754248957249,1.39598691,114620.0,114610.0,1.51711824]
[1754248957950,0.79115734,114620.0,114610.0,1.51711824]
[1754248958251,1.39598691,114620.0,114610.0,1.51711824]
[1754248958453,0.52877714,114620.0,114610.0,1.24991824]
[1754248958644,0.79115734,114620.0,114610.0,1.24991824]
[1754248959463,0.49385714,114620.0,114610.0,1.24991824]
[1754248960249,0.29972269,114620.0,114610.0,1.24991824]
[1754248960548,0.29872269,114620.0,114610.0,1.75091824]
[1754248960754,0.32371269,114620.0,114610.0,1.95436462]
[1754248962153,0.32371269,114620.0,114610.0,1.45636462]
[1754248963446,0.29872269,114620.0,114610.0,1.45636462]
[1754248963646,0.23643245,114620.0,114610.0,1.45636462]
[1754248963850,0.14915221,114620.0,114610.0,1.45636462]
[1754248964660,0.14915221,114620.0,114610.0,1.95636462]
[1754248965256,0.00942582,114640.0,114610.0,1.90343522]
[1754248965559,0.00942582,114640.0,114630.0,1.43331095]
[1754248965751,0.00942582,114640.0,114630.0,1.70435095]
[1754248965951,0.00942582,114640.0,114630.0,1.87881495]
[1754248966150,0.03441582,114640.0,114630.0,1.87881495]
[1754248966548,0.03441582,114640.0,114630.0,1.8804886]
[1754248966844,0.00942582,114640.0,114630.0,1.7060246]
[1754248967152,0.2709593,114660.0,114650.0,0.2143446]
[1754248967352,0.2709593,114660.0,114650.0,1.40089724]
[1754248967654,0.2709593,114660.0,114650.0,1.40257089]
[1754248967853,0.3546951,114670.0,114660.0,0.1744294]
[1754248968056,0.4017751,114670.0,114660.0,0.2143294]
[1754248968644,0.4017751,114670.0,114660.0,0.19182305]
[1754248968858,0.4017751,114670.0,114660.0,0.26052346]
[1754248969061,0.4267651,114670.0,114660.0,0.26052346]
[1754248969358,0.4297651,114670.0,114660.0,0.29344278]
[1754248969958,0.4267651,114670.0,114660.0,0.29344278]
[1754248970161,0.4287651,114670.0,114660.0,0.29344278]
[1754248970560,0.4287651,114670.0,114660.0,0.26926278]
[1754248971561,0.4287651,114670.0,114660.0,0.54022278]
[1754248972158,0.4287651,114670.0,114660.0,1.74682278]
[1754248972960,0.4287651,114670.0,114660.0,1.47578278]
[1754248973262,0.96600105,114670.0,114660.0,1.74686278]
[1754248973660,0.4277651,114670.0,114660.0,1.74686278]
[1754248973858,0.96500105,114670.0,114660.0,1.74686278]
[1754248974260,0.4277651,114670.0,114660.0,1.77104278]
[1754248974472,0.4277651,114670.0,114660.0,0.29344278]
[1754248974764,0.4277651,114670.0,114660.0,0.56464278]
[1754248974964,0.384158,114670.0,114660.0,1.10187873]
[1754248975161,0.384158,114670.0,114660.0,0.56464278]
[1754248975362,0.384158,114670.0,114660.0,1.10187873]
[1754248975563,0.384158,114670.0,114660.0,0.56464278]
[1754248975958,0.2969455,114670.0,114660.0,0.56464278]
[1754248976368,0.2969455,114670.0,114660.0,0.29344278]
[1754248976573,0.2969455,114670.0,114660.0,1.10223873]
[1754248976860,0.2969455,114670.0,114660.0,0.54082278]
[1754248977564,0.2969455,114670.0,114660.0,0.56500278]
[1754248978566,0.2969455,114670.0,114660.0,0.29344278]
[1754248978768,0.83418145,114670.0,114660.0,0.52530268]
[1754248979169,0.2969455,114670.0,114660.0,0.52530268]
[1754248979361,0.83418145,114670.0,114660.0,0.54102268]
[1754248980267,1.19498145,114670.0,114660.0,0.35083338]
[1754248981173,1.36940545,114670.0,114660.0,0.07037406]
[1754248981370,0.2709897,114640.0,114630.0,0.6623974]
[1754248981569,0.2959797,114640.0,114630.0,0.9341974]
[1754248982271,0.12152,114640.0,114630.0,1.53988077]
[1754248982469,0.12152,114640.0,114630.0,1.54288077]
[1754248982671,0.12152,114640.0,114630.0,1.54480077]
[1754248982865,0.12152,114640.0,114630.0,1.00756482]
[1754248983070,0.12152,114640.0,114630.0,1.54480077]
[1754248983469,0.07444,114640.0,114630.0,1.54480077]
[1754248983774,0.05854,114640.0,114630.0,1.54480077]
[1754248984177,0.2959797,114640.0,114630.0,1.00756482]
[1754248984673,0.2959797,114640.0,114630.0,1.54480077]
[1754248984873,0.12152,114640.0,114630.0,1.55140664]
[1754248985073,0.12152,114640.0,114630.0,1.55340664]
[1754248985274,0.12152,114640.0,114630.0,1.55240664]
[1754248985575,0.12152,114640.0,114630.0,1.01565069]
[1754248985778,0.12152,114640.0,114630.0,1.55088664]
[1754248985779,0.2959797,114640.0,114630.0,1.55088664]
[1754248985981,0.12152,114640.0,114630.0,1.55188664]
[1754248986879,0.12152,114640.0,114630.0,1.01465069]
[1754248987078,0.12152,114640.0,114630.0,1.55188664]
[1754248987476,0.12152,114640.0,114630.0,1.01457069]
[1754248987780,0.12152,114640.0,114630.0,1.55164664]
[1754248989179,0.2959797,114640.0,114630.0,1.55164664]
[1754248989783,0.2959797,114640.0,114630.0,1.81884664]
[1754248990086,0.12152,114640.0,114630.0,1.81884664]
[1754248990282,0.2959797,114640.0,114630.0,1.81884664]
[1754248990478,0.2959797,114640.0,114630.0,1.54688664]
[1754248990685,0.3608,114670.0,114660.0,0.10136]
[1754248990686,0.4916196,114670.0,114660.0,0.10136]
[1754248990887,0.7167137,114670.0,114660.0,0.5705393]
[1754248991186,1.25394965,114670.0,114660.0,0.5705393]
[1754248991375,1.16673625,114670.0,114660.0,0.5705393]
[1754248991581,0.80593625,114670.0,114660.0,0.5705393]
[1754248991777,1.16673625,114670.0,114660.0,0.5705393]
[1754248991974,1.16873625,114670.0,114660.0,0.5705393]
[1754248992174,0.80793625,114670.0,114660.0,0.5705393]
[1754248992778,0.88084625,114670.0,114660.0,0.5705393]
[1754248994290,1.24164625,114670.0,114660.0,0.5705393]
[1754248994480,0.3436103,114670.0,114660.0,0.5705393]
[1754248994679,0.88084625,114670.0,114660.0,0.5705393]
[1754248997095,1.24164625,114670.0,114660.0,0.5705393]
[1754248997689,0.88084625,114670.0,114660.0,0.5705393]
[1754249001085,1.24164625,114670.0,114660.0,0.5705393]
[1754249001982,0.002,114670.0,114660.0,1.10777525]
[1754249002188,0.002,114670.0,114660.0,0.5705393]
[1754249002786,0.08466,114670.0,114660.0,0.5705393]
[1754249003793,0.08266,114670.0,114660.0,0.5705393]
[1754249003996,0.08366,114670.0,114660.0,0.5705393]
[1754249004397,0.2580751,114670.0,114660.0,0.5705393]
[1754249004696,0.03534,114670.0,114660.0,0.5705393]
[1754249004888,0.01346,114670.0,114660.0,0.9313393]
[1754249005692,0.001,114670.0,114660.0,0.9313393]
[1754249006095,0.92244235,114680.0,114670.0,0.2247951]
[1754249006396,0.92244235,114680.0,114670.0,0.2987251]
[1754249006597,0.3852064,114680.0,114670.0,0.2987251]
[1754249006793,0.92244235,114680.0,114670.0,0.2987251]
[1754249007195,0.3872064,114680.0,114670.0,0.2987251]
[1754249007395,0.92444235,114680.0,114670.0,0.2987251]
[1754249007989,0.92344235,114680.0,114670.0,0.2987251]
[1754249008297,0.3862064,114680.0,114670.0,0.2987251]
[1754249009903,0.7470064,114680.0,114670.0,0.2987251]
[1754249010696,1.28424235,114680.0,114670.0,0.1082]
[1754249011197,1.28424235,114680.0,114670.0,0.2826158]
[1754249011589,1.28424235,114680.0,114670.0,0.2987258]
[1754249012496,0.7470064,114680.0,114670.0,0.2987258]